[Event "106th British-ch 2019"]
[Site "Torquay"]
[Date "2019.08.01"]
[Round "6.26"]
[White "Starley, Robert"]
[Black "Villiers, Thomas"]
[Result "0-1"]
[ECO "C02"]
[WhiteElo "2058"]
[BlackElo "2218"]
[Annotator "NA"]
[PlyCount "140"]
[EventDate "2019.07.27"]
[EventType "swiss"]
[EventCountry "GBR"]
[SourceTitle "playchess.com"]
[Source "ChessBase"]
[SourceQuality "1"]
[TimeControl "40/5400+30:1800+30"]

1. e4 {[%emt 0:00:00]} e6 {[%emt 0:00:00]} 2. d4 {[%emt 0:00:00]} d5 {[%emt 0:00:00]} 3. e5 {[%emt 0:00:23]} c5 {[%emt 0:00:21]} 4. c3 {[%emt 0:00:04]} Qb6 {[%emt 0:00:05]} 5. Nf3 {[%emt 0:00:24]} Bd7 {[%emt 0:00:07]} 6. Be2 {[%emt 0:04:33]} Bb5 {[%emt 0:00:08]} 7. O-O {[%emt 0:00:26]} Nd7 {[%emt 0:02:16]} 8. Be3 {[%emt 0:04:37]} Bxe2 {[%emt 0:14:18]} 9. Qxe2 {[%emt 0:00:06]} c4 {[%emt 0:01:17]} 10. Qc2 {[%emt 0:01:17]} Ne7 {[%emt 0:00:10]} 11. Nbd2 {[%emt 0:01:17]} Nc6 {[%emt 0:00:17]} 12. b3 {[%emt 0:04:50]} cxb3 {[%emt 0:01:28]} 13. axb3 {[%emt 0:00:17]} Be7 {[%emt 0:00:33]} 14. Qd3 {[%emt 0:01:48]} O-O {[%emt 0:00:28]} 15. Bg5 {[%emt 0:02:10]} Qd8 {[%emt 0:01:55]} 16. Bxe7 {[%emt 0:01:58]} Qxe7 {[%emt 0:00:09]} 17. Rfe1 {[%emt 0:01:36]} a6 {[%emt 0:03:28]} 18. Nf1 {[%emt 0:03:35]} b5 {[%emt 0:00:35]} 19. Ne3 {[%emt 0:01:51]} Rfb8 {[%emt 0:00:44]} 20. b4 {[%emt 0:03:15]} a5 {[%emt 0:00:18]} 21. bxa5 {[%emt 0:01:12]} Nxa5 {[%emt 0:00:59]} 22. Nc2 {[%emt 0:02:44]} Nc4 {[%emt 0:01:18]} 23. Nb4 {[%emt 0:00:44]} Qe8 {[%emt 0:01:09]} 24. Ng5 {[%emt 0:03:13]} Nf8 {[%emt 0:00:26]} 25. g3 {[%emt 0:08:00]} Rxa1 {[%emt 0:02:15]} 26. Rxa1 {[%emt 0:00:14]} Ra8 {[%emt 0:00:02]} 27. Rxa8 {[%emt 0:09:23]} Qxa8 {[%emt 0:00:06]} 28. Qf3 {[%emt 0:00:44]} Qa7 {[%emt 0:08:51]} 29. Qd3 {[%emt 0:05:26]} Qa3 {[%emt 0:00:00]} 30. Kg2 {[%emt 0:02:39]} Qc1 31. Nf3 {[%emt 0:04:10]} h6 32. Qc2 {[%emt 0:04:11]} Qa1 33. Nd3 {[%emt 0:01:33]} Nd7 34. Nd2 {[%emt 0:02:53]} Nxd2 {[%emt 0:01:33]} 35. Qxd2 {[%emt 0:00:00]} Nb6 36. Qb2 {[%emt 0:00:32]} Qa4 37. Nc5 {[%emt 0:06:53]} Qc4 38. h4 {[%emt 0:00:14]} Na4 39. Nxa4 {[%emt 0:00:32]} bxa4 {[%emt 0:00:23]} 40. Qb8+ {[%emt 0:00:29]} Kh7 41. Qb1+ {[%emt 0:34:28]} g6 42. Qb7 {[%emt 0:01:18]} Kg7 43. Qe7 {[%emt 0:02:22]} Qc8 44. Qa7 {[%emt 0:05:31]} Qe8 45. Kh2 {[%emt 0:01:09]} Qb5 46. Qe7 {[%emt 0:03:29]} Qb8 {[%emt 0:02:06]} 47. Kg2 {[%emt 0:00:23]} Qa8 {[%emt 0:36:58]} 48. Qa3 {[%emt 0:00:00]} h5 {[%emt 0:00:53]} 49. Kh2 {[%emt 0:01:55]} Qa7 {[%emt 0:00:18]} 50. Kg2 {[%emt 0:02:20]} Qa6 51. Qe7 {[%emt 0:05:55]} Qa8 {[%emt 0:03:46]} 52. Qa3 {[%emt 0:00:00]} Kg8 {[%emt 0:00:14]} 53. Kh2 {[%emt 0:00:00]} Qa6 {[%emt 0:02:37]} 54. Kg2 {[%emt 0:00:00]} Kg7 55. Qe7 {[%emt 0:00:00]} Qd3 56. Qf6+ {[%emt 0:00:22]} Kg8 {[%emt 0:00:00]} 57. Qd8+ {[%emt 0:00:00]} Kh7 58. Qd7 {[%emt 0:02:53]} Qe4+ {[%emt 0:00:06]} 59. Kg1 {[%emt 0:00:00]} Kg7 {[%emt 0:00:00]} 60. Qxa4 {[%emt 0:00:00]} Qe1+ {[%emt 0:00:00]} 61. Kg2 Qxc3 {[%emt 0:00:00]} 62. Qa7 {[%emt 0:00:00]} Qd2 {[%emt 0:00:00]} 63. Qc5 {[%emt 0:00:00]} g5 {[%emt 0:00:00]} 64. hxg5 {[%emt 0:00:00]} Qxg5 {[%emt 0:00:00]} 65. Qc3 {[%emt 0:00:00]} h4 {[%emt 0:00:00]} 66. Qf3 {[%emt 0:00:39]} hxg3 {[%emt 0:00:00]} 67. Qxg3 {[%emt 0:00:00]} Kh6 {[%emt 0:00:00]} 68. Qxg5+ {[%emt 0:00:00]} Kxg5 {[%emt 0:00:05]} 69. Kg3 {[%emt 0:00:00]} Kf5 {[%emt 0:00:00]} 70. Kf3 {[%emt 0:00:00]} Kg5 {[%emt 0:00:13]} 0-1

[Event "106th British-ch 2019"]
[Site "Torquay"]
[Date "2019.08.01"]
[Round "6.27"]
[White "Kahn, Tito"]
[Black "Donaldson, Thomas"]
[Result "1/2-1/2"]
[ECO "A45"]
[WhiteElo "1921"]
[BlackElo "2065"]
[Annotator "NA"]
[PlyCount "179"]
[EventDate "2019.07.27"]
[EventType "swiss"]
[EventCountry "GBR"]
[SourceTitle "playchess.com"]
[Source "ChessBase"]
[SourceQuality "1"]
[TimeControl "40/5400+30:1800+30"]

1. d4 {[%emt 0:00:00]} Nf6 {[%emt 0:00:00]} 2. Bf4 {[%emt 0:00:00]} g6 {[%emt 0:00:00]} 3. Nc3 {[%emt 0:00:00]} d5 {[%emt 0:00:00]} 4. e3 {[%emt 0:00:00]} Bg7 {[%emt 0:00:03]} 5. h4 {[%emt 0:00:50]} h5 {[%emt 0:00:08]} 6. Nf3 {[%emt 0:01:32]} O-O {[%emt 0:00:27]} 7. Be2 {[%emt 0:02:06]} c5 {[%emt 0:01:24]} 8. Nb5 {[%emt 0:00:30]} Nc6 {[%emt 0:02:37]} 9. Ne5 {[%emt 0:12:49]} Nd7 {[%emt 0:08:58]} 10. g4 {[%emt 0:09:53]} Ndxe5 {[%emt 0:02:41]} 11. dxe5 {[%emt 0:00:22]} Bxg4 {[%emt 0:01:26]} 12. Bxg4 {[%emt 0:00:55]} Qa5+ {[%emt 0:00:29]} 13. Nc3 {[%emt 0:08:18]} hxg4 {[%emt 0:00:22]} 14. Qxd5 {[%emt 0:03:10]} Qb4 {[%emt 0:10:12]} 15. O-O-O {[%emt 0:05:32]} Rfd8 {[%emt 0:12:47]} 16. Qe4 {[%emt 0:11:06]} Nxe5 {[%emt 0:02:21]} 17. Qxb4 {[%emt 0:08:41]} Rxd1+ {[%emt 0:03:41]} 18. Rxd1 {[%emt 0:00:38]} cxb4 {[%emt 0:00:07]} 19. Nd5 {[%emt 0:03:26]} Nc6 {[%emt 0:01:52]} 20. Nc7 {[%emt 0:02:49]} Rd8 {[%emt 0:05:39]} 21. Nd5 {[%emt 0:01:44]} Kf8 {[%emt 0:12:27]} 22. Rd3 {[%emt 0:03:10]} a5 {[%emt 0:02:53]} 23. Bc7 {[%emt 0:01:58]} Rd7 {[%emt 0:01:46]} 24. Bb6 {[%emt 0:00:48]} Ne5 {[%emt 0:06:58]} 25. Rd1 {[%emt 0:05:12]} Nc4 {[%emt 0:03:59]} 26. Bd4 {[%emt 0:03:26]} Bxd4 {[%emt 0:05:52]} 27. Rxd4 {[%emt 0:00:07]} b5 {[%emt 0:02:00]} 28. b3 {[%emt 0:05:24]} Ne5 {[%emt 0:00:33]} 29. c4 {[%emt 0:02:39]} bxc4 {[%emt 0:05:36]} 30. bxc4 {[%emt 0:00:16]} Nxc4 {[%emt 0:01:10]} 31. Rxc4 {[%emt 0:03:06]} Rxd5 {[%emt 0:00:07]} 32. Rxg4 {[%emt 0:00:43]} Rf5 {[%emt 0:00:10]} 33. f4 {[%emt 0:01:11]} e5 {[%emt 0:00:14]} 34. fxe5 {[%emt 0:00:39]} Rxe5 {[%emt 0:00:11]} 35. Kd2 {[%emt 0:01:27]} Ke7 {[%emt 0:00:26]} 36. Rc4 {[%emt 0:01:45]} Rd5+ {[%emt 0:00:38]} 37. Kc2 {[%emt 0:00:16]} Kd6 {[%emt 0:00:08]} 38. Rf4 {[%emt 0:01:12]} f5 {[%emt 0:00:29]} 39. a3 {[%emt 0:01:04]} bxa3 {[%emt 0:01:20]} 40. Ra4 {[%emt 0:00:13]} Ke5 {[%emt 0:00:25]} 41. Kc3 {[%emt 0:30:47]} Rb5 {[%emt 0:31:56]} 42. Rxa3 {[%emt 0:00:00]} Ke4 {[%emt 0:00:00]} 43. Kc2 {[%emt 0:00:00]} Kf3 {[%emt 0:00:00]} 44. Kd3 {[%emt 0:00:00]} Re5 {[%emt 0:00:00]} 45. Kd2 {[%emt 0:00:00]} Kg4 {[%emt 0:00:00]} 46. Ra4+ {[%emt 0:00:00]} Re4 {[%emt 0:00:00]} 47. Rxa5 {[%emt 0:00:00]} Kxh4 {[%emt 0:00:00]} 48. Ke2 {[%emt 0:00:00]} Kg3 {[%emt 0:00:00]} 49. Ra6 {[%emt 0:00:00]} g5 {[%emt 0:00:00]} 50. Ra5 {[%emt 0:00:00]} Kg4 {[%emt 0:00:00]} 51. Kf2 {[%emt 0:00:00]} Rb4 {[%emt 0:00:00]} 52. Re5 {[%emt 0:00:00]} Rb2+ {[%emt 0:00:00]} 53. Kf1 {[%emt 0:00:00]} Rh2 {[%emt 0:00:00]} 54. Kg1 {[%emt 0:00:00]} Rh3 {[%emt 0:00:00]} 55. Kg2 {[%emt 0:00:00]} Rf3 {[%emt 0:00:00]} 56. Re8 {[%emt 0:00:00]} Rg3+ {[%emt 0:00:00]} 57. Kf2 {[%emt 0:00:00]} Rh3 {[%emt 0:00:00]} 58. Kg2 {[%emt 0:00:00]} Rh7 {[%emt 0:00:00]} 59. Re5 {[%emt 0:00:00]} Rf7 {[%emt 0:00:00]} 60. Kf2 {[%emt 0:00:00]} Rf6 {[%emt 0:00:00]} 61. Re8 {[%emt 0:00:00]} Kh5 {[%emt 0:00:00]} 62. Re7 {[%emt 0:00:00]} g4 {[%emt 0:00:00]} 63. Re8 {[%emt 0:01:29]} Kg5 {[%emt 0:00:00]} 64. Rg8+ {[%emt 0:01:18]} Rg6 {[%emt 0:00:00]} 65. Rf8 {[%emt 0:00:17]} Rh6 {[%emt 0:00:00]} 66. Rg8+ {[%emt 0:02:01]} Kf6 {[%emt 0:00:00]} 67. Rf8+ {[%emt 0:00:16]} Ke6 {[%emt 0:00:00]} 68. Re8+ {[%emt 0:00:33]} Kf7 {[%emt 0:00:00]} 69. Re5 {[%emt 0:00:07]} Kf6 {[%emt 0:00:00]} 70. Re8 {[%emt 0:00:03]} Rh3 {[%emt 0:00:00]} 71. Rf8+ {[%emt 0:00:41]} Ke6 {[%emt 0:00:00]} 72. Re8+ {[%emt 0:00:23]} Kf7 {[%emt 0:00:00]} 73. Re5 {[%emt 0:00:05]} Rf3+ {[%emt 0:00:00]} 74. Kg2 {[%emt 0:01:01]} Kf6 {[%emt 0:00:00]} 75. Re8 {[%emt 0:00:07]} Rh3 {[%emt 0:00:00]} 76. Kf2 {[%emt 0:00:46]} Rh7 {[%emt 0:00:00]} 77. Rf8+ {[%emt 0:00:58]} Rf7 {[%emt 0:00:00]} 78. Re8 {[%emt 0:00:11]} Re7 {[%emt 0:00:00]} 79. Rf8+ {[%emt 0:00:14]} Ke5 {[%emt 0:00:00]} 80. Ra8 {[%emt 0:00:39]} Rd7 {[%emt 0:00:00]} 81. Re8+ {[%emt 0:00:09]} Kd5 {[%emt 0:00:00]} 82. Rf8 {[%emt 0:00:11]} Ke4 {[%emt 0:00:00]} 83. Re8+ {[%emt 0:00:25]} Kd3 {[%emt 0:00:00]} 84. Re5 {[%emt 0:00:09]} Rf7 {[%emt 0:00:36]} 85. Kg3 {[%emt 0:00:21]} Ke2 {[%emt 0:00:45]} 86. Kg2 {[%emt 0:00:41]} Rf8 {[%emt 0:01:22]} 87. Kg3 {[%emt 0:01:24]} Kf1 {[%emt 0:00:55]} 88. Ra5 {[%emt 0:00:11]} Rf6 {[%emt 0:00:39]} 89. Re5 {[%emt 0:00:29]} Rf7 {[%emt 0:02:02]} 90. Ra5 {[%emt 0:00:34]} 1/2-1/2

[Event "106th British-ch 2019"]
[Site "Torquay"]
[Date "2019.08.02"]
[Round "7.2"]
[White "Palliser, Richard Jd"]
[Black "Gordon, Stephen J"]
[Result "1/2-1/2"]
[ECO "E36"]
[WhiteElo "2399"]
[BlackElo "2516"]
[Annotator "ChessBase"]
[PlyCount "90"]
[EventDate "2019.07.27"]
[EventType "swiss"]
[EventCountry "GBR"]
[SourceTitle "playchess.com"]
[Source "ChessBase"]
[SourceQuality "1"]
[TimeControl "40/5400+30:1800+30"]

1. d4 {[%emt 0:01:56]} Nf6 {[%emt 0:01:53]} 2. c4 {[%emt 0:00:09]} e6 {[%emt 0:00:07]} 3. Nc3 {[%emt 0:00:09]} Bb4 {[%emt 0:00:12]} 4. Qc2 {[%emt 0:00:13]} O-O {[%emt 0:01:08]} 5. a3 {[%emt 0:00:57]} Bxc3+ {[%emt 0:00:16]} 6. Qxc3 {[%emt 0:00:04]} d5 {[%emt 0:05:07]} 7. Nf3 {[%emt 0:07:07]} dxc4 {[%emt 0:00:30]} 8. Qxc4 {[%emt 0:00:03]} b6 {[%emt 0:00:05]} 9. Bg5 {[%emt 0:03:25]} Ba6 {[%emt 0:02:50]} 10. Qc2 {[%emt 0:02:30]} Nbd7 {[%emt 0:03:33]} 11. Ne5 {[%emt 0:15:57]} c5 {[%emt 0:04:31]} 12. Nxd7 {[%emt 0:01:15]} Qxd7 {[%emt 0:00:07]} 13. Bxf6 {[%emt 0:01:03]} gxf6 {[%emt 0:00:03]} 14. dxc5 {[%emt 0:00:19]} Rac8 {[%emt 0:19:35]} 15. Rd1 {[%emt 0:00:44]} Qc6 {[%emt 0:10:14]} 16. e3 {[%emt 0:01:40]} Bxf1 {[%emt 0:03:49]} 17. Kxf1 {[%emt 0:00:06]} Qb5+ {[%emt 0:03:02]} 18. Qe2 {[%emt 0:00:42]} Qxc5 {[%emt 0:00:40]} 19. f3 {[%emt 0:21:31]} Qh5 {[%emt 0:06:45]} 20. h4 {[%emt 0:04:17]} b5 {[%emt 0:08:11]} 21. g3 {[%emt 0:15:16]} Kh8 {[%emt 0:06:02]} 22. Kf2 {[%emt 0:02:38]} Rg8 {[%emt 0:03:32]} 23. Rd4 {[%emt 0:01:42]} Rc5 {[%emt 0:07:52]} 24. Qd3 {[%emt 0:07:15]} Qe5 {[%emt 0:03:53]} 25. f4 {[%emt 0:01:57]} Qh5 {[%emt 0:00:40]} 26. Rd8 {[%emt 0:01:00]} Rxd8 {[%emt 0:01:06]} 27. Qxd8+ {[%emt 0:00:04]} Kg7 {[%emt 0:00:04]} 28. Qd2 {[%emt 0:04:11]} Qf5 {[%emt 0:00:49]} 29. g4 {[%emt 0:01:07]} Rc2 {[%emt 0:02:56]} 30. gxf5 {[%emt 0:00:07]} Rxd2+ {[%emt 0:00:01]} 31. Kf3 {[%emt 0:00:06]} exf5 {[%emt 0:02:08]} 32. Rg1+ {[%emt 0:00:04]} Kf8 {[%emt 0:01:00]} 33. Rg2 {[%emt 0:00:36]} Rxg2 {[%emt 0:01:01]} 34. Kxg2 {[%emt 0:00:04]} Ke7 {[%emt 0:00:08]} 35. Kf3 {[%emt 0:00:08]} Kd6 {[%emt 0:00:28]} 36. Ke2 {[%emt 0:01:30]} Kc5 {[%emt 0:00:48]} 37. Kd3 {[%emt 0:02:02]} Kd5 {[%emt 0:02:08]} 38. h5 {[%emt 0:01:58]} a5 {[%emt 0:01:04]} 39. b3 {[%emt 0:00:32]} Kc5 {[%emt 0:00:34]} 40. h6 {[%emt 0:01:50]} Kd5 {[%emt 0:00:28]} 41. b4 {[%emt 0:03:21]} axb4 {[%emt 0:04:48]} 42. axb4 {[%emt 0:00:16]} Kc6 {[%emt 0:00:52]} 43. Kc3 {[%emt 0:00:20]} Kd5 {[%emt 0:00:09]} 44. Kd3 {[%emt 0:00:03]} Kc6 {[%emt 0:00:03]} 45. Kc3 {[%emt 0:00:01]} Kd5 {[%emt 0:00:05]} 1/2-1/2

[Event "106th British-ch 2019"]
[Site "Torquay"]
[Date "2019.08.02"]
[Round "7.3"]
[White "Emms, John M"]
[Black "Tan, Justin Hy"]
[Result "1/2-1/2"]
[ECO "C78"]
[WhiteElo "2481"]
[BlackElo "2513"]
[Annotator "ChessBase"]
[PlyCount "89"]
[EventDate "2019.07.27"]
[EventType "swiss"]
[EventCountry "GBR"]
[SourceTitle "playchess.com"]
[Source "ChessBase"]
[SourceQuality "1"]
[TimeControl "40/5400+30:1800+30"]

1. e4 {[%emt 0:00:00]} e5 {[%emt 0:00:00]} 2. Nf3 {[%emt 0:00:00]} Nc6 {[%emt 0:00:01]} 3. Bb5 {[%emt 0:00:20]} a6 {[%emt 0:00:53]} 4. Ba4 {[%emt 0:00:06]} Nf6 {[%emt 0:00:04]} 5. O-O {[%emt 0:00:12]} b5 {[%emt 0:01:28]} 6. Bb3 {[%emt 0:00:15]} Bc5 {[%emt 0:00:05]} 7. d3 {[%emt 0:10:01]} d6 {[%emt 0:00:21]} 8. c3 {[%emt 0:00:04]} h6 {[%emt 0:02:41]} 9. Re1 {[%emt 0:03:25]} O-O {[%emt 0:00:15]} 10. h3 {[%emt 0:01:58]} Bb6 {[%emt 0:07:28]} 11. Nbd2 {[%emt 0:00:23]} Ne7 {[%emt 0:00:41]} 12. Nf1 {[%emt 0:00:17]} Ng6 {[%emt 0:00:04]} 13. Ng3 {[%emt 0:00:06]} Re8 {[%emt 0:00:24]} 14. Be3 {[%emt 0:06:01]} Bxe3 {[%emt 0:01:42]} 15. fxe3 {[%emt 0:03:53]} Bb7 {[%emt 0:02:51]} 16. Rf1 {[%emt 0:04:00]} d5 {[%emt 0:05:04]} 17. Nd2 {[%emt 0:05:05]} Re6 {[%emt 0:20:45]} 18. Qf3 {[%emt 0:21:02]} c5 {[%emt 0:04:56]} 19. exd5 {[%emt 0:02:00]} Bxd5 {[%emt 0:00:22]} 20. Bxd5 {[%emt 0:00:06]} Qxd5 {[%emt 0:00:04]} 21. Nde4 {[%emt 0:03:42]} Rd8 {[%emt 0:03:41]} 22. Nxf6+ {[%emt 0:12:15]} Rxf6 {[%emt 0:00:08]} 23. Qxd5 {[%emt 0:00:05]} Rxf1+ {[%emt 0:00:58]} 24. Kxf1 {[%emt 0:01:34]} Rxd5 {[%emt 0:00:05]} 25. Ke2 {[%emt 0:01:14]} Nh4 {[%emt 0:01:17]} 26. Ne4 {[%emt 0:06:26]} c4 {[%emt 0:03:46]} 27. dxc4 {[%emt 0:01:10]} bxc4 {[%emt 0:00:06]} 28. g3 {[%emt 0:08:14]} Nf5 {[%emt 0:00:35]} 29. g4 {[%emt 0:01:49]} Nd6 {[%emt 0:00:14]} 30. Nxd6 {[%emt 0:01:22]} Rxd6 {[%emt 0:00:01]} 31. b3 {[%emt 0:01:11]} Rd3 {[%emt 0:04:10]} 32. Rc1 {[%emt 0:04:42]} e4 {[%emt 0:00:17]} 33. bxc4 {[%emt 0:00:08]} Kf8 {[%emt 0:00:18]} 34. Rc2 {[%emt 0:00:57]} Ke7 {[%emt 0:00:51]} 35. c5 {[%emt 0:00:03]} h5 {[%emt 0:19:46]} 36. c4 {[%emt 0:01:09]} hxg4 {[%emt 0:00:02]} 37. hxg4 {[%emt 0:00:02]} Ra3 {[%emt 0:00:05]} 38. Rd2 {[%emt 0:00:50]} Ra4 {[%emt 0:00:25]} 39. Rd4 {[%emt 0:01:15]} Rxa2+ {[%emt 0:00:01]} 40. Kd1 {[%emt 0:01:14]} Ra5 {[%emt 0:04:22]} 41. Rxe4+ {[%emt 0:08:23]} Kd7 {[%emt 0:00:56]} 42. Rf4 {[%emt 0:07:56]} f6 {[%emt 0:01:11]} 43. g5 {[%emt 0:00:53]} fxg5 {[%emt 0:01:08]} 44. Rf5 {[%emt 0:01:10]} Kc6 {[%emt 0:00:16]} 45. Rxg5 {[%emt 0:00:18]} 1/2-1/2

[Event "106th British-ch 2019"]
[Site "Torquay"]
[Date "2019.08.02"]
[Round "7.4"]
[White "Pert, Richard G"]
[Black "Pert, Nicholas"]
[Result "1-0"]
[ECO "D15"]
[WhiteElo "2430"]
[BlackElo "2563"]
[Annotator "ChessBase"]
[PlyCount "81"]
[EventDate "2019.07.27"]
[EventType "swiss"]
[EventCountry "GBR"]
[SourceTitle "playchess.com"]
[Source "ChessBase"]
[SourceQuality "1"]
[TimeControl "40/5400+30:1800+30"]

1. d4 {[%emt 0:00:00]} d5 {[%emt 0:00:00]} 2. c4 {[%emt 0:00:00]} c6 {[%emt 0:00:00]} 3. Nc3 {[%emt 0:00:00]} Nf6 {[%emt 0:00:00]} 4. Nf3 {[%emt 0:00:11]} dxc4 {[%emt 0:00:04]} 5. e4 {[%emt 0:00:08]} b5 {[%emt 0:00:25]} 6. Be2 {[%emt 0:00:05]} e6 {[%emt 0:01:37]} 7. O-O {[%emt 0:00:09]} Bb7 {[%emt 0:01:01]} 8. b3 {[%emt 0:01:04]} Bb4 {[%emt 0:05:33]} 9. e5 {[%emt 0:02:04]} Bxc3 {[%emt 0:03:04]} 10. exf6 {[%emt 0:00:06]} gxf6 {[%emt 0:01:42]} 11. Rb1 {[%emt 0:01:39]} c5 {[%emt 0:05:10]} 12. bxc4 {[%emt 0:01:40]} Bxd4 {[%emt 0:07:19]} 13. Rxb5 {[%emt 0:14:31]} Bc6 {[%emt 0:00:18]} 14. Rb3 {[%emt 0:00:32]} Rg8 {[%emt 0:06:20]} 15. g3 {[%emt 0:00:53]} Na6 {[%emt 0:04:02]} 16. Nxd4 {[%emt 0:10:22]} cxd4 {[%emt 0:01:06]} 17. Bf3 {[%emt 0:00:18]} Rc8 {[%emt 0:01:29]} 18. Bxc6+ {[%emt 0:13:17]} Rxc6 {[%emt 0:00:02]} 19. Qh5 {[%emt 0:01:33]} f5 {[%emt 0:21:51]} 20. Qxh7 {[%emt 0:03:45]} Rf8 {[%emt 0:10:47]} 21. Bh6 {[%emt 0:02:05]} Qf6 {[%emt 0:01:00]} 22. Bxf8 {[%emt 0:00:49]} Kxf8 {[%emt 0:00:03]} 23. Rb7 {[%emt 0:07:19]} Rxc4 {[%emt 0:05:54]} 24. Rxa7 {[%emt 0:01:25]} Nc7 {[%emt 0:00:50]} 25. Rb1 {[%emt 0:01:09]} f4 {[%emt 0:05:35]} 26. Rab7 {[%emt 0:10:00]} Ke7 {[%emt 0:05:00]} 27. Rb8 {[%emt 0:02:22]} e5 {[%emt 0:06:55]} 28. Qg8 {[%emt 0:05:57]} Rc6 {[%emt 0:03:17]} 29. Qd8+ {[%emt 0:13:19]} Ke6 {[%emt 0:00:01]} 30. Qxf6+ {[%emt 0:00:54]} Kxf6 {[%emt 0:00:02]} 31. R8b6 {[%emt 0:00:10]} Rxb6 {[%emt 0:01:19]} 32. Rxb6+ {[%emt 0:00:02]} Kf5 {[%emt 0:00:04]} 33. gxf4 {[%emt 0:00:18]} Nd5 {[%emt 0:00:53]} 34. Rb2 {[%emt 0:00:57]} Kxf4 {[%emt 0:02:05]} 35. a4 {[%emt 0:00:07]} e4 {[%emt 0:00:33]} 36. a5 {[%emt 0:00:19]} d3 {[%emt 0:00:39]} 37. a6 {[%emt 0:00:44]} f5 {[%emt 0:01:46]} 38. a7 {[%emt 0:00:26]} Nc7 {[%emt 0:00:01]} 39. Kg2 {[%emt 0:01:10]} Ke5 {[%emt 0:00:11]} 40. Kf1 {[%emt 0:04:09]} f4 {[%emt 0:01:08]} 41. Rb7 {[%emt 0:33:09]} 1-0

[Event "106th British-ch 2019"]
[Site "Torquay"]
[Date "2019.08.02"]
[Round "7.5"]
[White "Williams, Simon K"]
[Black "Houska, Jovanka"]
[Result "1/2-1/2"]
[ECO "D37"]
[WhiteElo "2468"]
[BlackElo "2422"]
[Annotator "ChessBase"]
[PlyCount "82"]
[EventDate "2019.07.27"]
[EventType "swiss"]
[EventCountry "GBR"]
[SourceTitle "playchess.com"]
[Source "ChessBase"]
[SourceQuality "1"]
[TimeControl "40/5400+30:1800+30"]

1. d4 {[%emt 0:01:08]} d5 {[%emt 0:00:00]} 2. c4 {[%emt 0:00:09]} e6 {[%emt 0:00:00]} 3. Nf3 {[%emt 0:00:08]} Nf6 {[%emt 0:00:03]} 4. Nc3 {[%emt 0:00:08]} Nbd7 {[%emt 0:00:05]} 5. Bf4 {[%emt 0:00:18]} dxc4 {[%emt 0:00:51]} 6. e4 {[%emt 0:01:20]} Bb4 {[%emt 0:02:38]} 7. Qc2 {[%emt 0:00:27]} c5 {[%emt 0:07:56]} 8. O-O-O {[%emt 0:08:42]} Bxc3 {[%emt 0:04:24]} 9. Qxc3 {[%emt 0:02:44]} Nxe4 {[%emt 0:00:08]} 10. Qc2 {[%emt 0:03:59]} Ndf6 {[%emt 0:02:05]} 11. g4 {[%emt 0:03:23]} cxd4 {[%emt 0:21:32]} 12. Rxd4 {[%emt 0:00:56]} Qa5 {[%emt 0:01:35]} 13. g5 {[%emt 0:10:36]} Nxg5 {[%emt 0:13:18]} 14. Bxg5 {[%emt 0:04:43]} Bd7 {[%emt 0:08:49]} 15. Rxc4 {[%emt 0:11:34]} Qxa2 {[%emt 0:01:42]} 16. Bg2 {[%emt 0:00:41]} Nd5 {[%emt 0:08:53]} 17. Ne5 {[%emt 0:01:45]} Qa1+ {[%emt 0:05:15]} 18. Kd2 {[%emt 0:07:21]} Qa5+ {[%emt 0:00:09]} 19. b4 {[%emt 0:00:12]} Nxb4 {[%emt 0:00:17]} 20. Qc3 {[%emt 0:00:05]} Qa2+ {[%emt 0:00:17]} 21. Ke3 {[%emt 0:00:30]} Nd5+ {[%emt 0:03:10]} 22. Bxd5 {[%emt 0:00:07]} exd5 {[%emt 0:00:04]} 23. Qb4 {[%emt 0:26:37]} f6 {[%emt 0:02:18]} 24. Rc7 {[%emt 0:01:17]} d4+ {[%emt 0:01:56]} 25. Qxd4 {[%emt 0:00:10]} Qb3+ {[%emt 0:01:28]} 26. Nd3 {[%emt 0:02:52]} Qe6+ {[%emt 0:07:41]} 27. Kd2 {[%emt 0:00:19]} Qa2+ {[%emt 0:00:25]} 28. Kc1 {[%emt 0:07:42]} Qa3+ {[%emt 0:02:32]} 29. Kb1 {[%emt 0:02:13]} Qb3+ {[%emt 0:00:10]} 30. Kc1 {[%emt 0:00:39]} Qa3+ {[%emt 0:00:05]} 31. Kd1 {[%emt 0:01:35]} Qa4+ {[%emt 0:01:17]} 32. Qxa4 {[%emt 0:00:05]} Bxa4+ {[%emt 0:00:04]} 33. Kd2 {[%emt 0:00:05]} fxg5 {[%emt 0:00:09]} 34. Re1+ {[%emt 0:00:10]} Kd8 {[%emt 0:04:26]} 35. Ree7 {[%emt 0:00:05]} Re8 {[%emt 0:00:59]} 36. Rxg7 {[%emt 0:02:04]} Rc8 {[%emt 0:00:03]} 37. Rxb7 {[%emt 0:00:39]} Rc2+ {[%emt 0:00:04]} 38. Kd1 {[%emt 0:00:02]} Rc7+ {[%emt 0:01:25]} 39. Kd2 {[%emt 0:00:05]} Rc2+ {[%emt 0:00:15]} 40. Kd1 {[%emt 0:00:04]} Rc4+ {[%emt 0:00:48]} 41. Kd2 {[%emt 0:30:06]} Rc2+ {[%emt 0:30:27]} 1/2-1/2